fUSD/lending_fUSD_20250523
["ID","MTS","AMOUNT","RATE_DAILY","PERIOD"]
[362136419,1748020251416,-461.9487662,0.0002819,2]
[362136420,1748020251425,-15427.3809643,0.00028196,3]
[362136421,1748020251435,-12294.8859734,0.00028196,3]
[362136422,1748020251444,-12294.8859734,0.00028199,3]
[362136423,1748020251453,-113024.93072815,0.000282,2]
[362136425,1748020463911,157.54,0.00013699,2]
[362136426,1748020518578,300.0,0.000135,2]
[362136427,1748020589906,1000.0,0.00025,30]
[362136428,1748020596813,1000.0,0.00025,31]
[362136429,1748020605821,1000.0,0.00025,32]
[362136430,1748020915663,250.0,0.00015,2]
[362136431,1748020916740,300.0,0.00017,2]
[362136432,1748020917890,-272.58787804,0.00019,2]
[362136433,1748020936188,162.3866144,0.0002739,120]
[362136434,1748021120211,4004.61918786,9e-05,2]
[362136435,1748021140127,-77.41212196,0.00019,2]
[362136436,1748021140148,-151.53219515,0.0002,2]
[362136437,1748021157403,-249.10438485,0.0002,2]
[362136438,1748021157439,-2523.76237663,0.0002,2]
[362136439,1748021157505,-1884.52873261,0.0002,2]
[362136440,1748021167138,4087.30876441,8e-05,2]
[362136441,1748021191867,-300.0,0.00019999,2]
[362136442,1748021191900,-4400.0,0.0002,2]
[362136444,1748021242617,394.85,0.00024872,120]
[362136445,1748021274405,2939.2671328,0.0001,2]
[362136446,1748021306544,23727.25277877,0.000111,2]
[362136447,1748021311850,217.09797583,0.0001,2]
[362136448,1748021318041,2203.77652254,0.0001421,7]
[362136449,1748021322181,6763.01794131,0.00013368,2]
[362136450,1748021338400,33050.11969648,0.00017001,2]
[362136451,1748021355076,-1255.3242141,0.00017001,2]
[362136452,1748021357096,-4194.72301398,0.00017001,2]
[362136453,1748021363073,-2726.96846313,0.00017001,2]
[362136454,1748021368133,-5496.94604162,0.00017001,2]
[362136455,1748021371103,-3127.38844379,0.00017001,2]
[362136456,1748021408827,390.919479,7.945e-05,2]
[362136465,1748021432605,-148.5301269,0.00017001,2]
[362136466,1748021432615,-900.0,0.000195,7]
[362136467,1748021432625,-1800.0,0.000196,7]
[362136468,1748021432635,-2700.0,0.000197,7]
[362136469,1748021432645,-480.0,0.00019799,2]
[362136470,1748021432655,-3600.0,0.000198,7]
[362136471,1748021432666,-150.0,0.00019899,2]
[362136472,1748021432675,-4500.0,0.000199,7]
[362136473,1748021432685,-5511.94701334,0.000199,2]
[362136503,1748021438276,-300.0,0.00019899,2]
[362136504,1748021438285,-3717.74202496,0.000199,2]
[362136505,1748021438297,-620.085039,0.000199,2]
[362136506,1748021438332,-522.27499128,0.000199,2]
[362136507,1748021438343,-438.79861884,0.000199,2]
[362136508,1748021438449,-33483.32467468,0.000199,2]
[362136513,1748021440528,-466.69545929,0.000199,2]
[362136514,1748021440550,-10378.62681817,0.000199,2]
[362136515,1748021440608,-1745.26896464,0.000199,2]
[362136516,1748021440620,-4872.23156411,0.000199,2]
[362136517,1748021440630,-203.47331536,0.000199,2]
[362136518,1748021440639,-266.65387662,0.000199,3]
[362136519,1748021440650,-193.14649436,0.000199,2]
[362136520,1748021440659,-27336.23425045,0.000199,2]
[362136521,1748021440674,-359.64690004,0.000199,2]
[362136522,1748021440686,-3673.55104759,0.000199,2]
[362136523,1748021440896,-5208.56666604,0.000199,2]
[362136524,1748021440905,-310.11671214,0.000199,2]
[362136525,1748021440915,-5034.68709332,0.000199,2]
[362136526,1748021440924,-17954.04655006,0.0001999,2]
[362136527,1748021440933,-150.93,0.0001999,2]
[362136528,1748021440943,-150.93,0.0001999,2]
[362136530,1748021440952,-150.93,0.0001999,2]
[362136532,1748021440961,-150.93,0.0001999,2]
[362136533,1748021440971,-150.93,0.0001999,2]
[362136534,1748021440980,-150.93,0.0001999,2]
[362136535,1748021440990,-150.93,0.0001999,2]
[362136536,1748021441000,-150.93,0.0001999,2]
[362136537,1748021441009,-150.93,0.0001999,2]
[362136538,1748021441019,-150.93,0.0001999,2]
[362136539,1748021441028,-150.93,0.0001999,2]
[362136540,1748021441038,-150.93,0.0001999,2]
[362136541,1748021441047,-150.93,0.0001999,2]
[362136542,1748021441057,-150.93,0.0001999,2]
[362136543,1748021441066,-150.93,0.0001999,2]
[362136544,1748021441075,-150.93,0.0001999,2]
[362136545,1748021441085,-150.93,0.0001999,2]
[362136546,1748021441095,-150.93,0.0001999,2]
[362136547,1748021441104,-150.93,0.0001999,2]
[362136548,1748021441113,-150.93,0.0001999,2]
[362136549,1748021441123,-150.93,0.0001999,2]
[362136550,1748021441132,-150.93,0.0001999,2]
[362136551,1748021441142,-150.93,0.0001999,2]
[362136552,1748021441151,-150.93,0.0001999,2]
[362136553,1748021441161,-150.93,0.0001999,2]
[362136554,1748021441170,-150.93,0.0001999,2]
[362136555,1748021441180,-150.93,0.0001999,2]
[362136556,1748021441189,-150.93,0.0001999,2]
[362136557,1748021441199,-150.93,0.0001999,2]
[362136558,1748021441208,-307.96584413,0.0001999,2]
[362136559,1748021441218,-307.96584413,0.0001999,2]
[362136560,1748021441227,-307.96584413,0.0001999,2]
[362136561,1748021441237,-1000.0,0.00019999,2]
[362136562,1748021441248,-157.62536648,0.00019999,2]
[362136563,1748021441257,-82495.84107962,0.0002,2]
[362136564,1748021441269,-372.34049029,0.0002,2]
[362136569,1748021443397,-612869.94063617,0.0002,2]
[362136571,1748021443558,-701.78452857,0.0002,2]
[362136578,1748021446302,-2619.38329724,0.000199,2]
[362136579,1748021446518,-8069.765768,0.000199,2]
[362136580,1748021446528,-46577.23429659,0.0002,2]
[362136581,1748021446684,-6468.46279784,0.0002,2]
[362136585,1748021535702,157.54,0.00013699,2]
[362136588,1748021698278,-3126.290895,0.00019601,2]
[362136589,1748021698299,-200.0,0.00019651,2]
[362136590,1748021698319,-333.72137723,0.000197,2]
[362136591,1748021698340,-200.0,0.00019807,2]
[362136592,1748021698361,-1948.0,0.00019863,2]
[362136593,1748021698382,-300.0,0.00019899,2]
[362136594,1748021698403,-118356.46127281,0.000199,2]
[362136595,1748021698423,-216.57457318,0.000199,2]
[362136596,1748021698443,-24385.33257608,0.000199,2]
[362136597,1748021698464,-177.76925108,0.000199,3]
[362136598,1748021698490,-2830.01903881,0.000199,2]
[362136599,1748021698511,-3356.45806222,0.000199,2]
[362136600,1748021698534,-46289.37295359,0.0002,2]
[362136601,1748021702914,-300.0,0.00019999,2]
[362136602,1748021702941,-1200.0,0.00019999,2]
[362136603,1748021702963,-295.0,0.00019999,2]
[362136604,1748021702985,-248205.0,0.0002,2]
[362136605,1748021703465,-250000.0,0.0002,2]
[362136606,1748021798616,150.0,0.00017,2]
[362136608,1748022153421,-200.0,0.000195,7]
[362136609,1748022153445,-500.0,0.000196,7]
[362136610,1748022153468,-776.16288556,0.00019671,2]
[362136611,1748022153492,-800.0,0.000197,7]
[362136612,1748022153535,-1100.0,0.000198,7]
[362136613,1748022153559,-776.16288556,0.00019895,2]
[362136614,1748022153584,-1200.0,0.00019899,2]
[362136615,1748022153609,-1400.0,0.000199,7]
[362136616,1748022153635,-16256.88838406,0.000199,2]
[362136617,1748022153658,-177.76925107,0.000199,3]
[362136618,1748022153683,-2237.63870814,0.000199,2]
[362136619,1748022153707,-333.36055999,0.000199,2]
[362136620,1748022153733,-950.92120388,0.000199,2]
[362136621,1748022153755,-5291.09612174,0.000199,2]
[362136622,1748022253927,181.77,0.00026914,120]
[362136623,1748022343122,-300.0,0.00019899,2]
[362136624,1748022343144,-331.78379697,0.00019899,2]
[362136626,1748022447133,-300.0,0.000195,7]
[362136627,1748022447154,-600.0,0.000196,7]
[362136628,1748022447176,-722.69886409,0.000197,7]
[362136629,1748022551098,-173.91,0.00017193,2]
[362136630,1748022551120,-75.49453047,0.00018446,2]
[362136632,1748022631460,-124.50546953,0.00018446,2]
[362136633,1748022631469,-250.0,0.00018446,2]
[362136634,1748022631479,-339.84258216,0.00018891,2]
[362136635,1748022631488,-55.34174556,0.00018912,2]
[362136636,1748022631499,-144.65825444,0.00018912,2]
[362136637,1748022631509,-250.0,0.00018912,2]
[362136638,1748022631518,-200.0,0.00019238,2]
[362136639,1748022631528,-250.0,0.00019238,2]
[362136640,1748022631538,-215.18909,0.00019601,2]
[362136641,1748022631547,-177.30113591,0.000197,7]
[362136642,1748022631556,-336.66615873,0.000197,2]
[362136643,1748022631565,-707.48,0.00019708,2]
[362136644,1748022631575,-165.77,0.00019725,2]
[362136645,1748022631584,-167.68482798,0.00019799,2]
[362136646,1748022631595,-1200.0,0.000198,7]
[362136647,1748022631603,-300.0,0.00019898,2]
[362136648,1748022631612,-1200.0,0.00019898,2]
[362136649,1748022631622,-231.47184327,0.00019899,2]
[362136653,1748022631787,-68.52815673,0.00019899,2]
[362136657,1748022631801,-300.0,0.00019899,2]
[362136659,1748022631810,-168.58121526,0.000199,2]
[362136661,1748022631820,-183.80315231,0.000199,2]
[362136663,1748022631829,-61.0752264,0.000199,2]
[362136665,1748022631842,-146.6408736,0.000199,2]
[362136667,1748022631851,-167.68482797,0.000199,2]
[362136669,1748022631861,-1500.0,0.000199,7]
[362136671,1748022631873,-300.024504,0.000199,2]
[362136673,1748022631883,-209.78735759,0.000199,2]
[362136675,1748022631892,-493.95199855,0.000199,2]
[362136677,1748022631902,-177.76925107,0.000199,3]
[362136679,1748022631911,-1491.75913876,0.000199,2]
[362136681,1748022631920,-350.0,0.0001998,2]
[362136683,1748022631929,-210.98761783,0.0001999,2]
[362136685,1748022631939,-1000.0,0.00019999,2]
[362136687,1748022631948,-2015.507,0.00019999,2]
[362136689,1748022631958,-178.158,0.00019999,2]
[362136691,1748022631968,-150.0,0.00019999,2]
[362136693,1748022631977,-500.0,0.00019999,2]
[362136695,1748022631986,-500.0,0.00019999,2]
[362136697,1748022631996,-500.0,0.00019999,2]
[362136699,1748022632005,-237.0,0.00019999,2]
[362136701,1748022632014,-70692.77293064,0.0002,2]
[362136703,1748022632025,-10700.0,0.0002,2]
[362136705,1748022632036,-391.86503,0.0002,2]
[362136707,1748022632047,-1095.9653088,0.0002,2]
[362136709,1748022632058,-2147.568,0.0002,2]
[362136713,1748022632080,-179396.35984356,0.0002,2]
[362136715,1748022632092,-5406.77070804,0.0002,2]
[362136717,1748022632103,-449.32685517,0.0002,2]
[362136718,1748022632113,-22537.0278375,0.0002,2]
[362137172,1748022637476,-6480.36,0.000199,2]
[362137173,1748022637584,-3412.49,0.000199,2]
[362137174,1748022637691,-537.13002854,0.000199,2]
[362137198,1748022639552,-407.94556084,0.000199,2]
[362137200,1748022639563,-2592.05443916,0.0002,2]
[362137202,1748022639575,-2300.0,0.0002,2]
[362137205,1748022639586,-2115.33182775,0.0002,2]
[362137208,1748022639608,-1392.57348119,0.0002,2]
[362137210,1748022639619,-8835.64197625,0.0002,2]
[362137212,1748022639632,-1180.000015,0.0002,2]
[362137217,1748022639663,-3000.0,0.0002,2]
[362137223,1748022639719,-257.255,0.0002,2]
[362137224,1748022639731,-5361.11583853,0.0002,2]
[362137225,1748022639828,-2630.6079092,0.0002,2]
[362137226,1748022639841,-2411.22947931,0.0002,2]
[362137227,1748022639886,-548.59805,0.0002,2]
[362137232,1748022642629,-1703.48756228,0.0002,2]
[362137233,1748022642642,-66657.64910273,0.0002,2]
[362137234,1748022642653,-25186.3396482,0.0002,2]
[362137235,1748022642695,-85.61183738,0.0002,2]
[362137236,1748022642706,-634.28002656,0.0002,2]
[362137237,1748022642740,-3473.27013643,0.0002,2]
[362137238,1748022642753,-541.84850196,0.0002,2]
[362137259,1748022645735,-3282.6564,0.0002,2]
[362137262,1748022721232,250.0,0.00015,2]
[362137263,1748022722324,300.0,0.00017,2]
[362137265,1748022873076,170.06,0.00013699,2]
[362137266,1748022895516,348.4040447,0.00027,120]
[362137267,1748023506830,315.88,0.00026963,120]
[362137268,1748023628143,-350.0,0.00019,2]
[362137269,1748023628169,-200.0,0.00019185,2]
[362137270,1748023628192,-200.0,0.00019526,2]
[362137271,1748023628214,-500.0,0.0001953,2]
[362137272,1748023628238,-56.6091511,0.00019609,2]
[362137273,1748023752126,-231.89979487,0.00019547,2]
[362137275,1748023831648,-192.65657287,0.00019509,2]
[362137276,1748023831658,-168.0,0.00019547,2]
[362137277,1748023831671,-691.0,0.00019547,2]
[362137278,1748023831680,-5852.08299447,0.00019548,2]
[362137279,1748023831700,-7785.23529797,0.00019548,2]
[362137280,1748023831756,-536.5791848,0.00019548,2]
[362137300,1748023837781,-475.27303315,0.00019548,2]
[362137301,1748023837794,-2365.94227,0.00019548,2]
[362137305,1748023839781,-823.61325138,0.00019548,2]
[362137306,1748023839793,-1449.3909364,0.00019548,2]
[362137307,1748023839994,-4611.88303183,0.00019548,2]
[362137308,1748023840005,-259.2708489,0.00019609,2]
[362137309,1748023840015,-200.0,0.00019625,2]
[362137310,1748023840025,-206.0,0.00019662,2]
[362137311,1748023840036,-250.0,0.0001968,2]
[362137312,1748023840046,-200.0,0.00019694,2]
[362137313,1748023840056,-1605.9,0.00019741,2]
[362137314,1748023840066,-1000.0,0.0001982,2]
[362137315,1748023840076,-1162.39,0.0001982,2]
[362137316,1748023840086,-1500.0,0.00019885,2]
[362137317,1748023840096,-2264.01523104,0.000199,2]
[362137318,1748023840106,-380.73181638,0.000199,2]
[362137319,1748023840116,-474.89421954,0.000199,2]
[362137320,1748023840126,-192.65657287,0.000199,2]
[362137321,1748023840135,-579.26594858,0.000199,2]
[362137322,1748023840146,-858.65423364,0.00019905,2]
[362137323,1748023840156,-1190.0,0.0001999,2]
[362137324,1748023840166,-691.59224814,0.0001999,2]
[362137325,1748023840176,-153.5,0.0001999,2]
[362137326,1748023840186,-153.5,0.0001999,2]
[362137327,1748023840196,-153.5,0.0001999,2]
[362137328,1748023840205,-153.5,0.0001999,2]
[362137329,1748023840216,-153.5,0.0001999,2]
[362137330,1748023840230,-153.5,0.0001999,2]
[362137331,1748023840240,-350.08156727,0.0001999,2]
[362137332,1748023840250,-350.08156727,0.0001999,2]
[362137334,1748023840261,-1612.406,0.00019999,2]
[362137336,1748023840271,-178.158,0.00019999,2]
[362137337,1748023840281,-1000.0,0.00019999,2]
[362137339,1748023840290,-238.65,0.00019999,2]
[362137341,1748023840299,-193.0,0.00019999,2]
[362137342,1748023840311,-121965.3498144,0.0002,2]
[362137343,1748023840326,-182425.55202733,0.0002,2]
[362137344,1748023840337,-917.66534124,0.0002,2]
[362137345,1748023840349,-17268.95713665,0.0002,2]
[362137346,1748023840406,-65405.35550556,0.0002,2]
[362137358,1748023842831,-30768.11505803,0.0002,2]
[362137359,1748023842992,-12917.9828306,0.0002,2]
[362137366,1748023845758,-778.17047334,0.0002,2]
[362137367,1748023846022,-3276.6552,0.0002,2]
[362137368,1748023846076,-1426.61074262,0.0002,2]
[362137376,1748024210257,161.55,0.00013699,2]
[362137378,1748024290097,-327.32858,0.00019599,2]
[362137379,1748024290120,-200.0,0.00019631,2]
[362137380,1748024290143,-206.0,0.00019662,2]
[362137381,1748024290173,-200.0,0.00019736,2]
[362137382,1748024290212,-1525.6,0.00019817,2]
[362137383,1748024290235,-150.0,0.0001982,7]
[362137384,1748024290256,-200.0,0.0001982,2]
[362137385,1748024290278,-204.01280084,0.000199,2]
[362137386,1748024290300,-270.0220536,0.000199,2]
[362137387,1748024290322,-425.0,0.00019998,2]
[362137388,1748024290345,-1292.03656556,0.00019999,5]
[362137390,1748024511908,181.77,0.00025044,120]
[362137391,1748024531129,250.0,0.00015,2]
[362137392,1748024532189,300.0,0.00017,2]
[362137393,1748024733136,-269.23022406,0.00019,2]
[362137396,1748024917002,260.14327806,0.000107,2]
[362137397,1748024952633,300.0,0.00027,120]
[362137398,1748024992429,381.0,0.00027,120]
[362137405,1748025032051,-80.76977594,0.00019,2]
[362137406,1748025032060,-3276.45,0.00019073,2]
[362137407,1748025032070,-12872.62488816,0.00019118,2]
[362137408,1748025032081,-11027.37511184,0.00019118,2]
[362137409,1748025032090,-581.19,0.00019196,2]
[362137410,1748025032100,-165.77,0.00019251,2]
[362137411,1748025032109,-200.0,0.000193,2]
[362137412,1748025032118,-206.0,0.00019543,2]
[362137413,1748025032128,-294.595722,0.00019599,2]
[362137414,1748025032137,-200.0,0.0001963,2]
[362137415,1748025032147,-1811.21218484,0.000199,2]
[362137416,1748025032156,-342.65863476,0.000199,2]
[362137417,1748025032166,-1686.43395939,0.000199,2]
[362137418,1748025032177,-546.9918,0.000199,2]
[362137423,1748025037943,-300.0,0.00019117,2]
[362137424,1748025037953,-490.11199992,0.000199,2]
[362137425,1748025038000,-982.89999999,0.000199,2]
[362137426,1748025040329,-372.1643057,0.000199,2]
[362137448,1748025045881,-1134.79147195,0.000199,2]
[362137449,1748025045891,-243.01984824,0.000199,2]
[362137450,1748025045902,-461.06149876,0.000199,2]
[362137451,1748025045912,-6681.68026489,0.000199,2]
[362137452,1748025045926,-6691.57640211,0.000199,2]
[362137453,1748025045936,-5362.40066958,0.000199,2]
[362137454,1748025045946,-342.65863469,0.00019901,2]
[362137455,1748025045957,-342.65863469,0.00019903,2]
[362137456,1748025045967,-1000.0,0.00019903,2]
[362137457,1748025045976,-342.65863469,0.00019904,2]
[362137458,1748025045985,-342.65863469,0.00019906,2]
[362137459,1748025045994,-342.65863469,0.00019907,2]
[362137460,1748025046004,-342.65863469,0.00019909,2]
[362137461,1748025046014,-342.65863469,0.0001991,2]
[362137462,1748025046023,-342.65863469,0.00019912,2]
[362137463,1748025046033,-342.65863469,0.00019913,2]
[362137464,1748025046042,-693.71962897,0.0001999,2]
[362137465,1748025046051,-153.5,0.0001999,2]
[362137466,1748025046060,-153.5,0.0001999,2]
[362137467,1748025046069,-153.5,0.0001999,2]
[362137468,1748025046078,-1067.26839265,0.0001999,2]
[362137469,1748025046090,-689.52160735,0.0001999,2]
[362137470,1748025046100,-1756.79,0.0001999,2]
[362137471,1748025046109,-175.04078364,0.0001999,2]
[362137472,1748025046118,-678.10666488,0.00019999,5]
[362137473,1748025046129,-200.71604999,0.00019999,5]
[362137474,1748025046140,-1000.0,0.00019999,2]
[362137475,1748025046150,-1289.925,0.00019999,2]
[362137476,1748025046159,-178.158,0.00019999,2]
[362137477,1748025046169,-228.7,0.00019999,2]
[362137478,1748025046178,-768.6908853,0.00019999,2]
[362137479,1748025046188,-15272.8906491,0.00019999,2]
[362137480,1748025046203,-802.1188,0.00019999,2]
[362137481,1748025046215,-1282.25965607,0.00019999,2]
[362137482,1748025046227,-660.60802338,0.00019999,2]
[362137483,1748025046238,-1051.85840555,0.00019999,2]
[362137484,1748025046254,-12068.68327129,0.00019999,2]
[362137537,1748025241020,-240.86772804,0.00017449,2]
[362137538,1748025243086,-315.27128866,0.00017449,2]
[362137539,1748025245780,-169.51201583,0.00017449,2]
[362137540,1748025247344,-218.59695874,0.00017449,2]
[362137541,1748025249265,-162.05176874,0.00017449,2]
[362137542,1748025250775,-223.78096518,0.00017449,2]
[362137543,1748025618398,189.52,0.00026011,120]
[362137585,1748025832800,161.35,0.00013699,2]
[362137616,1748025937129,-200.0,0.00017309,2]
[362137617,1748025937150,-200.0,0.00017379,2]
[362137618,1748025937170,-119.23927481,0.00017449,2]
[362137619,1748025937191,-200.0,0.00017667,2]
[362137620,1748025937213,-189.52,0.00018917,2]
[362137621,1748025937234,-816.57064878,0.00019016,2]
[362137622,1748025959091,-183.42935122,0.00019016,2]
[362137623,1748025959111,-2321.22051329,0.00019018,2]
[362137626,1748026034136,-300.0,0.00019017,2]
[362137627,1748026034158,-200.0,0.00019017,2]
[362137628,1748026034181,-2376.71052229,0.00019018,2]
[362137629,1748026048130,-150.0,0.00018762,7]
[362137630,1748026048152,-6388.3862692,0.00019018,2]
[362137633,1748026163605,-2476.95,0.00018762,2]
[362137634,1748026163626,-200.0,0.00018815,2]
[362137635,1748026163647,-29994.17,0.00018821,2]
[362137636,1748026163668,-500.0,0.00018837,2]
[362137637,1748026163688,-500.0,0.00018837,2]
[362137638,1748026163709,-500.0,0.00018837,2]
[362137639,1748026163730,-500.0,0.00018837,2]
[362137640,1748026163751,-500.0,0.00018837,2]
[362137641,1748026163772,-500.0,0.00018837,2]
[362137642,1748026164037,-500.0,0.00018837,2]
[362137643,1748026164060,-500.0,0.00018837,2]
[362137644,1748026164081,-500.0,0.00018837,2]
[362137645,1748026164102,-500.0,0.00018837,2]
[362137646,1748026164123,-330.80209134,0.00018837,2]
[362137647,1748026164143,-593.04291258,0.00018837,2]
[362137648,1748026164164,-500.0,0.00018837,2]
[362137649,1748026164184,-293.13565011,0.00018837,2]
[362137650,1748026164209,-500.0,0.00018837,2]
[362137651,1748026164230,-500.0,0.00018837,2]
[362137652,1748026164251,-500.0,0.00018837,2]
[362137653,1748026164272,-500.0,0.00018837,2]
[362137654,1748026164293,-500.0,0.00018837,2]
[362137655,1748026164313,-177779.89,0.00018838,2]
[362137656,1748026164334,-890.49863081,0.00018918,2]
[362137657,1748026164357,-12813.68269522,0.00019018,2]
[362137658,1748026164378,-250.0,0.0001904,2]
[362137659,1748026164399,-200.0,0.0001904,2]
[362137660,1748026164420,-200.0,0.00019089,2]
[362137661,1748026164440,-1500.0,0.00019178,2]
[362137662,1748026164462,-250.0,0.00019196,2]
[362137663,1748026164491,-651.0,0.00019316,2]
[362137664,1748026164513,-1200.0,0.00019499,2]
[362137665,1748026164537,-655.11201122,0.000195,2]
[362137666,1748026164560,-300.0,0.000195,7]
[362137667,1748026164582,-166.19,0.00019509,2]
[362137668,1748026164603,-500.0,0.00019562,2]
[362137669,1748026164624,-265.13615,0.00019599,2]
[362137670,1748026164646,-700.0,0.000196,7]
[362137671,1748026164667,-207.0,0.00019655,2]
[362137672,1748026164689,-1100.0,0.000197,7]
[362137673,1748026164710,-300.0,0.00019712,2]
[362137674,1748026164732,-1449.32,0.00019713,2]
[362137675,1748026164754,-150.0,0.00019727,2]
[362137676,1748026164774,-150.0,0.00019729,2]
[362137677,1748026164796,-150.0,0.00019736,2]
[362137678,1748026164818,-150.0,0.0001974,2]
[362137679,1748026164838,-351.0,0.00019745,2]
[362137680,1748026164859,-150.0,0.00019768,2]
[362137681,1748026164881,-150.0,0.00019771,2]
[362137682,1748026164903,-150.0,0.0001978,2]
[362137683,1748026164923,-150.0,0.0001978,2]
[362137684,1748026164944,-228.0,0.00019782,2]
[362137685,1748026164967,-150.0,0.00019782,2]
[362137686,1748026164995,-850.0,0.00019782,2]
[362137687,1748026165018,-150.0,0.00019786,2]
[362137688,1748026165040,-150.0,0.00019787,2]
[362137689,1748026165065,-150.0,0.0001979,2]
[362137690,1748026165087,-150.0,0.00019791,2]
[362137691,1748026165108,-864.76119748,0.00019792,2]
[362137692,1748026165129,-150.0,0.00019796,2]
[362137693,1748026165152,-150.0,0.00019799,2]
[362137694,1748026165173,-1190.30866124,0.000198,2]
[362137695,1748026201306,-173.9,0.00018932,2]
[362137696,1748026201336,-173.9,0.00019027,2]
[362137697,1748026201362,-890.49863081,0.00019027,2]
[362137698,1748026201387,-890.49863081,0.00019136,2]
[362137699,1748026201412,-890.49863081,0.00019245,2]
[362137700,1748026201437,-890.49863081,0.00019354,2]
[362137701,1748026201859,-890.49863081,0.00019464,2]
[362137702,1748026201897,-890.49863081,0.00019573,2]
[362137703,1748026201920,-238.622535,0.00019599,2]
[362137704,1748026201944,-890.49863081,0.00019682,2]
[362137705,1748026201965,-200.0,0.00019701,2]
[362137706,1748026201991,-890.49863081,0.00019791,2]
[362137707,1748026202012,-10874.47079372,0.000198,2]
[362137708,1748026202035,-1500.0,0.000198,7]
[362137709,1748026202059,-150.0,0.0001981,2]
[362137710,1748026202084,-150.0,0.00019831,2]
[362137711,1748026202106,-150.0,0.00019832,2]
[362137712,1748026202129,-150.0,0.00019837,2]
[362137713,1748026202154,-150.0,0.00019847,2]
[362137714,1748026202177,-150.0,0.0001985,2]
[362137715,1748026202200,-150.0,0.00019858,2]
[362137716,1748026202222,-150.0,0.00019858,2]
[362137717,1748026202245,-150.0,0.00019863,2]
[362137718,1748026202268,-150.0,0.00019869,2]
[362137719,1748026202290,-150.0,0.00019877,2]
[362137720,1748026202318,-150.0,0.00019882,2]
[362137721,1748026202341,-150.0,0.00019892,2]
[362137722,1748026202365,-150.0,0.00019895,2]
[362137723,1748026202389,-150.0,0.00019896,2]
[362137724,1748026202413,-407.05218816,0.000199,2]
[362137725,1748026202435,-1448.96974788,0.000199,2]
[362137726,1748026202457,-293.92817804,0.000199,2]
[362137727,1748026202479,-384.63095217,0.000199,2]
[362137728,1748026202501,-6676.66861381,0.000199,2]
[362137729,1748026202523,-1900.0,0.000199,7]
[362137730,1748026202544,-1000.0,0.000199,2]
[362137731,1748026202566,-1000.0,0.000199,2]
[362137732,1748026202587,-1000.0,0.000199,2]
[362137733,1748026202609,-1000.0,0.000199,2]
[362137734,1748026202630,-1000.0,0.000199,2]
[362137735,1748026202653,-1000.0,0.000199,2]
[362137736,1748026202675,-981.0,0.000199,2]
[362137737,1748026202696,-13014.15307182,0.000199,2]
[362137738,1748026202717,-1249.51970405,0.000199,2]
[362137739,1748026202739,-307.37433252,0.000199,2]
[362137740,1748026202760,-262.43344882,0.000199,2]
[362137741,1748026202783,-3574.93377972,0.000199,2]
[362137742,1748026202808,-150.0,0.00019902,2]
[362137743,1748026202832,-150.0,0.00019904,2]
[362137744,1748026202857,-150.0,0.0001991,2]
[362137745,1748026202884,-150.0,0.0001991,2]
[362137746,1748026202907,-150.0,0.00019912,2]
[362137747,1748026202933,-150.0,0.00019915,2]
[362137748,1748026202957,-150.0,0.00019917,2]
[362137749,1748026202989,-150.0,0.00019929,2]
[362137750,1748026203011,-150.0,0.00019937,2]
[362137751,1748026203041,-150.0,0.00019945,2]
[362137752,1748026203067,-150.0,0.00019953,2]